bitfinex/quotes_ETHUSD_20260306
["timestamp","ask_amount","ask_price","bid_price","bid_amount"]
[1772804116489,1.69063089,2058.7,2057.8,0.002]
[1772804116662,1.69063089,2058.7,2057.9,0.002]
[1772804116857,1.69063089,2058.7,2058.0,0.002]
[1772804117166,1.69066057,2058.7,2057.0,0.002]
[1772804117562,1.21418164,2059.1,2057.3,0.065536]
[1772804117763,1.21418164,2059.1,2057.4,1.21512588]
[1772804117965,0.4762639,2059.0,2057.4,1.21712588]
[1772804118266,0.4762639,2059.0,2057.5,0.002]
[1772804118458,0.4762639,2059.0,2057.4,0.002]
[1772804118659,0.4762639,2059.0,2057.1,0.001]
[1772804118894,0.4762639,2059.0,2057.2,0.065536]
[1772804119079,0.4762639,2059.0,2057.2,0.002]
[1772804119391,0.4762639,2059.0,2057.3,0.49463812]
[1772804119561,0.4762639,2058.8,2057.2,0.002]
[1772804119763,0.4762639,2058.4,2057.2,0.002]
[1772804119967,0.4762639,2058.2,2057.2,0.002]
[1772804120168,0.4762639,2058.2,2056.5,1.21565711]
[1772804120169,0.4762639,2058.0,2056.1,1.303]
[1772804120469,0.4762639,2057.8,2056.1,3.0115212]
[1772804120773,0.4762639,2057.6,2056.0,0.32728838]
[1772804121174,0.4762639,2057.6,2056.0,1.54319576]
[1772804121771,1.21506682,2057.5,2056.0,1.54319576]
[1772804122393,1.21506682,2057.5,2056.0,2.03583388]
[1772804122696,1.21506682,2057.5,2056.1,1.303]
[1772804123187,0.4762639,2057.4,2056.0,0.32728838]
[1772804123775,0.4762639,2057.2,2056.0,0.32728838]
[1772804124097,0.4762639,2057.2,2055.8,1.21603839]
[1772804124477,1.21518495,2057.3,2055.8,1.21603839]
[1772804124997,1.21518495,2057.3,2055.4,5.35692452]
[1772804124998,0.4762639,2057.2,2055.4,0.49263812]
[1772804125201,0.4762639,2057.2,2055.4,1.21626191]
[1772804125398,0.4762639,2056.7,2055.2,0.63369882]
[1772804125599,0.14948499,2056.8,2054.4,2.12589013]
[1772804125600,0.4762639,2056.5,2054.4,3.34274589]
[1772804125799,1.69198068,2056.4,2054.4,3.34274589]
[1772804126305,0.4762639,2056.3,2054.4,3.34274589]
[1772804126607,0.4762639,2056.3,2054.4,2.85013003]
[1772804126899,0.4762639,2056.1,2054.4,0.33025201]
[1772804127478,0.4762639,2055.9,2054.4,1.21689706]
[1772804127679,0.4762639,2056.3,2054.4,1.21689706]
[1772804128000,0.4762639,2056.3,2054.4,1.70953518]
[1772804128177,0.4762639,2056.3,2054.5,0.49263812]
[1772804128371,0.4762639,2056.3,2054.3,2.6739301]
[1772804128707,0.4762639,2056.3,2054.4,0.065536]
[1772804128914,0.4762639,2056.3,2054.4,0.55817412]
[1772804129876,0.4762639,2056.1,2054.5,1.21684108]
[1772804130072,0.4762639,2056.1,2054.2,7.36688973]
[1772804130073,0.4762639,2056.1,2054.2,2.49890541]
[1772804130281,0.4762639,2055.5,2053.3,1.21755223]
[1772804130514,0.4762639,2055.5,2053.2,1.302]
[1772804130515,0.4762639,2055.3,2053.2,1.302]
[1772804130751,0.4762639,2055.1,2053.2,2.5195623]
[1772804131005,0.4762639,2055.1,2053.3,0.55817412]
[1772804131778,1.21654501,2055.0,2053.5,0.065536]
[1772804132391,1.71336323,2055.0,2053.5,0.065536]
[1772804133285,0.49681822,2054.9,2053.4,1.21749293]
[1772804133903,0.49681822,2054.9,2053.4,0.065536]
[1772804133904,1.21666342,2054.8,2053.4,0.065536]
[1772804134309,1.71343145,2054.9,2053.4,0.065536]
[1772804134507,1.21661323,2054.9,2053.4,0.065536]
[1772804135509,0.49681822,2054.8,2053.3,4.86997175]
[1772804135943,1.21672263,2054.7,2053.3,4.86997175]
[1772804136447,4.86641685,2055.0,2053.3,5.34675278]
[1772804136831,4.86641685,2055.0,2053.4,0.065536]
[1772804136832,1.21654501,2055.0,2053.4,0.065536]
[1772804137042,1.71336323,2055.0,2053.4,0.065536]
[1772804137239,0.49681822,2054.9,2053.4,0.065536]
[1772804137440,0.49681822,2054.9,2053.3,4.86997175]
[1772804138145,0.49681822,2054.7,2053.3,4.86997175]
[1772804140145,0.49681822,2054.5,2053.3,4.86997175]
[1772804140622,1.71342243,2055.0,2053.3,4.86997175]
[1772804140942,1.71342243,2055.0,2053.4,0.065536]
[1772804140943,1.21660421,2054.9,2053.4,0.065536]
[1772804141167,1.71340599,2055.0,2053.4,0.065536]
[1772804141313,4.86528974,2055.4,2053.4,0.54231703]
[1772804141517,1.21633937,2055.4,2053.4,0.54231703]
[1772804141940,1.71309469,2055.5,2053.4,0.54231703]
[1772804142340,1.71309469,2055.5,2053.6,0.54231703]
[1772804142545,1.21615435,2055.7,2053.6,0.54231703]
[1772804142731,1.21601245,2055.9,2054.4,2.66471718]
[1772804142936,0.49681822,2055.8,2054.5,1.292]
[1772804143866,1.71283067,2055.9,2054.5,1.292]
[1772804144032,2.72910558,2056.4,2054.5,1.292]
[1772804144033,0.49681822,2056.6,2054.8,0.54231703]
[1772804144235,0.49681822,2056.6,2055.1,0.54231703]
[1772804144427,0.49681822,2057.0,2055.1,0.54231703]
[1772804144855,1.21529877,2057.2,2055.1,0.54231703]
[1772804145130,5.35720458,2057.5,2055.1,0.54231703]
[1772804145131,0.49681822,2057.7,2055.7,0.47678103]
[1772804145464,1.71177094,2057.7,2055.9,0.54231703]
[1772804145650,1.71177094,2057.7,2056.1,2.66471718]
[1772804145966,0.49681822,2057.6,2056.1,2.66471718]
[1772804146259,0.49681822,2057.4,2056.2,1.21583503]
[1772804146633,0.49681822,2057.4,2054.9,0.47678103]
[1772804146940,0.49681822,2057.1,2055.0,6.15383782]
[1772804147465,0.49681822,2057.1,2055.1,0.065536]
[1772804148134,0.49681822,2056.9,2055.0,6.15383782]
[1772804148336,0.49681822,2056.7,2055.0,6.15383782]
[1772804148967,0.49681822,2056.5,2055.0,2.50454501]
[1772804149670,0.49681822,2056.5,2054.4,2.56837708]
[1772804149838,0.49681822,2056.3,2054.5,4.86715599]
[1772804150035,0.49681822,2056.1,2054.5,1.21684108]
[1772804150375,0.49681822,2055.9,2054.5,1.21684108]
[1772804152263,0.49681822,2056.4,2054.6,0.54231703]
[1772804152459,1.71259412,2056.3,2054.7,1.21672263]
[1772804152660,0.49681822,2056.2,2054.7,1.21672263]
[1772804154587,1.21589416,2056.1,2054.7,1.21672263]
[1772804154805,0.49514865,2056.0,2054.7,1.21672263]
[1772804155504,0.49514865,2056.6,2054.8,0.49688323]
[1772804155674,0.49514865,2056.6,2054.7,1.21672263]
[1772804155675,0.49514865,2056.6,2054.9,0.56241923]
[1772804156394,0.002,2056.9,2055.1,0.56241923]
[1772804156594,0.002,2056.9,2055.3,0.56241923]
[1772804157475,0.49514865,2057.5,2056.0,0.065536]
[1772804157674,1.71021729,2057.5,2056.1,1.281]
[1772804157903,0.49514865,2058.1,2056.4,0.065536]
[1772804158481,1.21477162,2058.0,2056.5,1.21565767]
[1772804158806,0.49514865,2057.9,2056.5,1.21565767]
[1772804159992,0.49514865,2057.7,2056.5,1.21565767]
[1772804160606,0.49514865,2057.5,2056.2,4.8633284]
[1772804160824,0.49514865,2057.3,2055.9,2.49497097]
[1772804161005,0.49514865,2057.3,2055.9,1.21597097]
[1772804162008,0.49192849,2057.1,2055.6,1.21618992]
[1772804162223,0.49192849,2057.0,2055.6,1.21618992]
[1772804162726,0.49192849,2056.8,2055.5,1.21624908]
[1772804163234,0.49192849,2056.6,2055.3,1.2163248]
[1772804164125,1.36490625,2056.9,2055.2,1.21741723]
[1772804164126,0.49192849,2056.4,2055.2,1.21741723]
[1772804164722,0.49192849,2056.2,2055.2,0.001]
[1772804166796,0.49192849,2056.1,2055.2,0.001]
[1772804167005,0.49192849,2057.0,2055.2,0.001]
[1772804167215,0.49192849,2056.9,2055.2,0.001]
[1772804167504,0.49192849,2056.9,2055.3,0.065536]
[1772804167706,0.49192849,2056.9,2055.3,0.53032137]
[1772804168324,0.49192849,2056.9,2055.3,0.065536]
[1772804168734,1.21548035,2056.8,2055.2,0.001]
[1772804168932,0.49192849,2056.7,2055.2,0.001]
[1772804170798,0.49192849,2056.5,2055.2,0.001]
[1772804171414,0.49192849,2056.4,2055.2,0.001]
[1772804171735,0.49192849,2056.2,2055.2,0.001]
[1772804172638,0.49192849,2056.7,2055.2,0.001]
[1772804172935,0.49192849,2057.4,2055.4,1.21630826]
[1772804173131,0.49192849,2057.4,2055.5,1.269]
[1772804174537,0.49192849,2057.1,2055.5,1.269]
[1772804174908,1.70729066,2057.0,2055.6,1.21618992]
[1772804175105,1.21536217,2057.0,2055.6,1.21618992]
[1772804175331,0.49192849,2056.9,2055.6,1.21618992]
[1772804176915,1.70740884,2056.8,2055.6,1.21618992]
[1772804177227,0.49192849,2056.7,2055.6,1.21618992]
[1772804177808,1.21548035,2056.8,2055.7,0.001]
[1772804178011,0.49192849,2057.1,2055.7,0.001]
[1772804179034,1.21536217,2057.0,2055.7,0.001]
[1772804179424,1.70729066,2057.0,2055.7,0.001]
[1772804180210,0.49192849,2056.9,2055.7,0.001]
[1772804180432,1.70725456,2057.1,2055.7,0.001]
[1772804180632,1.707234,2057.1,2055.7,0.001]
[1772804180890,0.49192849,2057.0,2055.7,0.001]
[1772804181147,0.49192849,2056.8,2055.7,0.001]
[1772804181947,0.49192849,2056.7,2055.7,0.001]
[1772804182248,0.49192849,2056.7,2055.3,1.21631897]
[1772804183057,0.49192849,2056.5,2055.2,4.86654355]
[1772804183546,0.49192849,2056.5,2055.2,0.001]
[1772804185032,0.49192849,2056.3,2055.2,0.001]
[1772804185642,0.49192849,2056.7,2055.2,0.46578537]
[1772804186356,0.49192849,2057.1,2055.3,0.53032137]
[1772804187039,0.49192849,2057.1,2055.5,0.53032137]
[1772804187418,1.70723228,2057.1,2055.5,0.53032137]
[1772804187919,0.49192849,2057.0,2055.5,0.53032137]
[1772804188325,0.49192849,2057.0,2055.4,1.21630826]
[1772804188527,0.49192849,2057.0,2055.4,1.68109363]
[1772804188763,0.49192849,2057.0,2055.5,0.46478537]
[1772804188958,0.49192849,2057.0,2055.4,1.21630826]
[1772804189257,0.49192849,2056.8,2055.3,4.86523304]
[1772804189948,0.49192849,2056.8,2055.2,4.86623304]
[1772804190788,0.49192849,2057.3,2055.3,0.53032137]
[1772804190930,0.49192849,2057.1,2055.3,0.53032137]
[1772804191127,1.21536217,2057.0,2055.4,1.68109363]
[1772804191352,0.49192849,2056.9,2055.6,0.001]
[1772804191550,0.002,2056.8,2055.7,1.261]
[1772804191751,0.002,2056.8,2055.8,0.45532987]
[1772804193129,0.002,2056.8,2055.9,1.21601245]
[1772804193374,0.002,2056.8,2055.9,1.16741409]
[1772804195266,0.49111934,2056.6,2055.8,4.8640498]
[1772804195966,0.49111934,2056.6,2055.8,1.2160716]
[1772804197145,1.70677701,2056.5,2055.6,0.001]
[1772804197334,0.49111934,2056.4,2055.6,0.001]
[1772804198561,0.49111934,2056.4,2055.4,0.001]
[1772804198737,0.49111934,2056.2,2055.4,0.001]
[1772804198938,0.49111934,2055.8,2055.2,0.001]
[1772804199140,0.49111934,2055.6,2055.0,0.001]
[1772804199345,0.49111934,2055.5,2054.0,1.21713729]
[1772804200385,0.49111934,2055.5,2054.0,1.67246716]
[1772804200905,0.49111934,2055.5,2054.0,1.21713729]
[1772804201309,1.21630826,2055.4,2053.9,5.32408593]
[1772804201958,1.7074276,2055.4,2053.9,5.32408593]
[1772804202306,0.49111934,2055.4,2054.0,0.45532987]
[1772804202647,0.49111934,2055.4,2053.9,4.86875606]
[1772804203279,0.49111934,2055.2,2054.1,1.21707803]
[1772804203671,1.21627277,2055.5,2054.1,1.21707803]
[1772804204157,2.50946121,2055.9,2054.2,0.45532987]
[1772804204364,1.21602231,2055.9,2054.2,0.45532987]
[1772804204570,0.49111934,2056.0,2054.4,0.45532987]
[1772804204785,0.49111934,2056.0,2054.5,1.71132987]
[1772804204786,1.70707671,2056.0,2054.5,1.71132987]
[1772804205283,0.49111934,2056.4,2054.7,0.45532987]
[1772804205757,0.49111934,2056.4,2054.8,0.45532987]
[1772804206597,1.2176226,2056.6,2054.6,1.21678185]
[1772804206598,0.002,2056.6,2055.0,0.45532987]
[1772804206754,0.49111934,2056.5,2054.7,0.065536]
[1772804207185,0.49111934,2056.5,2054.7,0.52086587]
[1772804207395,1.70683612,2056.4,2054.9,0.065536]
[1772804209491,1.70683612,2056.4,2055.0,1.21654501]
[1772804209983,0.002,2056.6,2055.1,0.45532987]
[1772804210195,1.217609,2056.6,2055.1,0.45532987]
[1772804210512,1.21761075,2056.6,2055.1,0.45532987]
[1772804210808,0.49111934,2056.5,2055.1,0.45532987]
[1772804210967,0.49111934,2056.5,2055.0,1.21654501]
[1772804211402,0.49111934,2056.3,2054.8,4.86618004]
[1772804211601,0.49111934,2056.3,2054.8,5.32150991]
[1772804212583,0.49111934,2056.3,2054.9,0.45532987]
[1772804213272,0.49111934,2056.3,2054.8,4.86618004]
[1772804213472,1.70691402,2056.3,2054.8,5.75847314]
[1772804213696,1.70691402,2056.3,2054.8,5.32150991]
[1772804213905,0.002,2056.6,2054.9,0.52086587]
[1772804214103,1.21760547,2056.6,2054.9,0.52086587]
[1772804214395,1.21759872,2056.6,2054.9,0.52086587]
[1772804214801,0.49695248,2056.5,2054.9,0.065536]
[1772804214983,0.49695248,2056.5,2054.8,4.86618004]
[1772804215180,0.14948499,2056.0,2054.7,1.21666342]
[1772804215381,0.49695248,2055.5,2054.6,4.86689054]
[1772804217497,0.49695248,2055.3,2054.3,0.001]
[1772804217697,0.002,2056.6,2054.3,0.066536]
[1772804217899,0.003,2059.3,2055.8,0.48111921]
[1772804217900,0.49695248,2058.2,2055.8,0.48111921]
[1772804218101,0.49695248,2058.2,2055.7,2.47417639]
[1772804218102,2.12955493,2058.2,2056.0,0.48111921]
[1772804218275,1.21464068,2058.3,2056.1,2.28449973]
[1772804218276,4.93764041,2056.3,2056.1,2.28449973]
[1772804218478,4.93764041,2056.3,2055.7,1.25]
[1772804218699,4.93764041,2056.3,2055.1,0.48111921]
[1772804218700,4.93764041,2056.3,2055.3,2.28449973]
[1772804219018,5.43459289,2056.3,2055.1,3.53449973]
[1772804219213,5.43459289,2056.3,2055.1,1.25]
[1772804219577,5.43459289,2056.3,2055.1,2.46648571]
[1772804219578,0.49695248,2056.1,2055.1,2.46648571]
[1772804219808,0.49695248,2056.1,2055.1,1.25]
[1772804220382,0.49695248,2056.1,2055.1,2.46647729]
[1772804221079,4.93964041,2056.3,2055.1,2.46647729]
[1772804221278,6.15542306,2056.3,2055.1,2.46647729]
[1772804221511,6.65237554,2056.3,2055.1,2.46647729]
[1772804222206,4.93964041,2056.3,2055.1,4.75097702]
[1772804222419,4.93964041,2056.3,2055.2,2.28449973]
[1772804223182,4.93964041,2056.3,2055.3,2.28449973]
[1772804223695,4.68899421,2056.3,2055.7,2.28449973]
[1772804223887,4.68899421,2056.3,2055.8,1.249]
[1772804224091,4.68899421,2056.3,2055.6,2.28449973]
[1772804224303,4.68899421,2056.3,2055.4,1.21630826]
[1772804224305,4.68899421,2056.3,2055.4,1.12210096]
[1772804224308,0.48966267,2056.2,2055.4,1.12210096]
[1772804224616,0.48966267,2056.2,2055.0,5.531437]
[1772804224617,2.12955493,2058.4,2055.8,0.42225062]
[1772804224784,2.12955493,2058.4,2056.1,3.43797865]
[1772804224785,0.48966267,2058.3,2056.1,3.43797865]
[1772804224987,0.48966267,2058.1,2056.1,3.43797865]
[1772804225299,0.48966267,2058.1,2056.0,3.50351465]
[1772804225495,0.48966267,2057.9,2056.1,1.21589416]
[1772804225704,0.48966267,2057.7,2056.1,4.65387281]
[1772804225891,0.48966267,2057.7,2056.1,1.21589416]
[1772804227686,0.48966267,2057.5,2056.1,1.21589416]
[1772804229906,0.48966267,2057.3,2056.0,4.86357667]
[1772804230318,0.48966267,2057.0,2055.3,4.86542012]
[1772804230618,2.12955493,2057.2,2054.9,1.21755687]
[1772804230619,0.48966267,2056.5,2054.9,1.21755687]
[1772804231790,0.48966267,2056.3,2054.9,0.001]
[1772804233702,0.48966267,2056.1,2054.9,0.001]
[1772804235217,0.48966267,2056.1,2055.1,0.001]
[1772804235416,0.49166267,2056.1,2055.1,0.001]
[1772804235825,1.70561597,2056.0,2055.1,0.001]
[1772804236191,0.48966267,2055.9,2055.1,0.001]
[1772804237623,0.48966267,2055.8,2054.9,0.001]
[1772804237828,1.70579342,2055.7,2054.9,0.001]
[1772804238634,0.48966267,2055.6,2054.9,0.001]
[1772804239809,0.48966267,2055.4,2054.9,0.001]
[1772804241526,0.48966267,2055.8,2054.9,0.001]
[1772804241821,1.21613075,2055.7,2054.9,0.001]
[1772804242000,1.70578175,2055.8,2054.9,0.001]
[1772804242200,0.48966267,2055.7,2054.9,0.001]
[1772804243820,0.48966267,2055.5,2054.9,0.001]
[1772804244007,1.21618992,2055.6,2054.9,0.001]
[1772804244213,4.8642864,2055.9,2054.9,0.001]
[1772804244697,5.35394907,2055.9,2054.9,0.001]
[1772804244902,0.48966267,2055.8,2054.9,0.001]
[1772804246430,1.70561597,2056.0,2054.9,0.001]
[1772804247004,0.48966267,2055.9,2054.9,0.001]
[1772804248337,0.48966267,2055.7,2055.1,0.001]
[1772804248516,0.49166267,2055.7,2055.1,0.001]
[1772804249230,0.49166267,2055.7,2054.6,0.001]
[1772804251017,1.70779503,2055.7,2054.6,0.001]
[1772804251237,0.49166267,2055.7,2054.6,0.001]
[1772804251533,0.48966267,2055.6,2054.6,0.001]
[1772804251731,5.0,2054.9,2054.6,0.001]
[1772804254735,4.99317554,2054.9,2054.6,0.001]
[1772804255841,6.69684626,2054.9,2054.1,3.43797865]
[1772804256009,6.69684626,2054.9,2054.0,0.001]
[1772804256010,0.48701897,2054.8,2054.0,0.001]
[1772804256537,0.48701897,2054.6,2054.0,0.001]
[1772804256719,0.48701897,2054.6,2053.8,0.001]
[1772804257119,1.21672263,2054.7,2053.2,1.2186058]
[1772804257120,0.48701897,2054.4,2053.2,1.2186058]
[1772804258638,0.48701897,2054.3,2053.2,0.001]
[1772804259417,0.54941128,2054.3,2053.2,0.001]
[1772804259616,0.48701897,2054.2,2053.2,0.001]
[1772804260623,1.704097,2054.1,2053.2,0.001]
[1772804260823,0.48701897,2054.1,2053.2,0.001]
[1772804261250,5.41740774,2054.3,2053.2,0.42625062]
[1772804261251,0.54941128,2054.3,2053.2,0.42625062]
[1772804261425,0.54941128,2054.3,2053.4,0.001]
[1772804262028,1e-08,2054.3,2053.4,0.42625062]
[1772804262426,1e-08,2054.3,2053.4,0.001]
[1772804262427,1.21697747,2054.3,2053.4,0.001]
[1772804262625,0.48701898,2054.3,2053.4,0.001]
[1772804262942,1e-08,2054.3,2053.4,0.001]
[1772804264016,1e-08,2054.3,2053.4,0.42625062]
[1772804264214,0.002,2054.7,2053.7,0.42525062]
[1772804264423,0.002,2054.7,2053.9,0.42525062]
[1772804264627,4.99517554,2054.9,2054.0,1.21713729]
[1772804264827,4.99517554,2054.9,2054.2,2.55889762]
[1772804265226,0.48701897,2055.5,2054.2,2.98214824]
[1772804265627,0.48701897,2055.5,2054.3,0.42325062]
[1772804265834,1.70327668,2055.5,2054.3,0.42325062]
[1772804266233,1.70326886,2055.5,2054.4,1.236]
[1772804266526,0.48701897,2055.5,2054.5,1.21684108]
[1772804268155,0.81244499,2055.2,2054.5,1.21684108]
[1772804272366,0.32542602,2055.2,2054.5,1.21684108]
[1772804272659,0.48701897,2055.6,2054.5,1.21684108]
[1772804272660,0.48701897,2055.6,2054.5,1.6400917]
[1772804274834,0.002,2055.7,2054.8,0.42325062]
[1772804275040,0.47343253,2055.7,2054.7,1.21672263]
[1772804275760,0.47343253,2055.7,2054.7,0.001]
[1772804276866,0.47143253,2055.5,2054.7,0.001]
[1772804277173,0.002,2055.7,2054.7,0.42425062]
[1772804277348,0.002,2055.0,2054.7,0.42425062]
[1772804277536,0.002,2055.7,2054.7,0.42425062]
[1772804277859,0.002,2055.2,2054.7,0.001]
[1772804280550,0.002,2055.5,2054.7,0.001]
[1772804280551,0.002,2055.5,2054.7,0.42225062]
[1772804280773,0.002,2055.5,2054.9,3.87374276]
[1772804280987,0.002,2055.5,2055.1,1.21648581]
[1772804281471,0.002,2055.5,2055.0,1.237]
[1772804281675,0.4563522,2055.5,2054.7,0.001]
[1772804281862,0.4563522,2055.5,2054.8,1.21666342]
[1772804283050,0.4563522,2055.5,2054.7,0.001]
[1772804283951,0.4543522,2055.4,2054.7,0.001]
[1772804285383,0.4543522,2055.2,2054.7,0.001]
[1772804286552,0.4563522,2055.5,2054.7,0.001]
[1772804287385,0.4543522,2055.4,2054.7,0.001]
[1772804290484,0.4543522,2055.4,2054.9,0.001]
[1772804290671,0.002,2055.3,2054.9,0.001]
[1772804291060,0.002,2055.5,2054.9,0.001]
[1772804291261,0.002,2055.5,2054.9,2.30289068]
[1772804291450,0.002,2055.8,2055.0,3.51843569]
[1772804291650,0.002,2055.8,2055.2,2.30189068]
[1772804292257,7.47017322,2056.4,2055.0,4.67775204]
[1772804292258,0.4543522,2056.4,2055.3,2.30189068]
[1772804292482,0.4543522,2056.4,2055.6,2.30189068]
[1772804292683,0.32410762,2056.5,2055.7,2.30189068]
[1772804293186,0.4543522,2057.4,2055.9,2.30189068]
[1772804293382,0.4543522,2057.1,2056.0,2.30189068]
[1772804293682,0.4543522,2057.1,2056.1,1.21589416]
[1772804294194,1.6696642,2057.1,2056.1,1.21589416]
[1772804294492,0.4543522,2057.0,2056.1,1.21589416]
[1772804294693,0.4543522,2057.0,2055.9,1.21597476]
[1772804295056,1.7883522,2056.9,2055.9,1.21597476]
[1772804295354,0.4543522,2056.9,2055.9,1.21597476]
[1772804295782,0.4543522,2056.8,2055.8,1.21602621]
[1772804297055,0.4543522,2056.8,2055.6,1.21615305]
[1772804297582,0.4543522,2056.6,2055.5,7.16665036]
[1772804298092,0.4543522,2057.0,2055.9,0.46180312]
[1772804299370,5.0,2056.5,2055.9,0.46180312]
[1772804299570,5.0,2056.5,2056.0,1.2159533]
[1772804299769,4.53835656,2056.5,2056.0,1.2159533]
[1772804300095,0.4543522,2057.0,2056.0,1.2159533]
[1772804300262,0.4543522,2056.9,2056.0,1.2159533]
[1772804301022,1.7843522,2056.9,2056.0,1.2159533]
[1772804301168,0.4543522,2056.9,2056.0,1.2159533]
[1772804301563,0.4543522,2056.6,2055.4,1.21625578]
[1772804301966,0.4543522,2056.9,2055.5,0.46180312]
[1772804302167,0.4543522,2056.9,2055.6,0.46180312]
[1772804303165,0.4543522,2056.9,2055.8,0.001]
[1772804303569,0.002,2056.7,2055.9,0.46180312]
[1772804303974,0.4563522,2056.7,2055.8,0.001]
[1772804304761,0.4543522,2056.6,2055.8,0.001]
[1772804305290,0.4543522,2056.4,2055.8,0.001]
[1772804305689,1.67010027,2056.4,2055.8,0.001]
[1772804306064,0.4543522,2056.4,2055.8,0.001]
[1772804306397,1.67008338,2056.4,2055.8,0.001]
[1772804307506,0.4543522,2056.4,2055.8,0.001]
[1772804309092,0.4543522,2056.3,2055.8,0.001]
[1772804309400,0.4543522,2056.3,2055.5,0.001]
[1772804309894,2.9969336,2056.7,2055.5,0.46280312]
[1772804310195,1.67190453,2056.7,2055.5,0.46280312]
[1772804310393,0.4543522,2056.6,2055.5,0.46280312]
[1772804310879,0.4543522,2056.6,2055.5,0.001]
[1772804311471,0.4543522,2056.3,2055.5,0.001]
[1772804311669,0.47597954,2055.9,2054.9,1.21755941]
[1772804312299,1.21590114,2056.1,2055.0,0.4599825]
[1772804313206,3.01481981,2056.2,2055.0,0.4599825]
[1772804313406,0.47597954,2056.1,2055.0,0.4599825]
[1772804313811,1.69193284,2056.0,2055.1,1.21648581]
[1772804314192,1.69193284,2056.0,2055.0,5.32592576]
[1772804314193,0.47597954,2055.8,2055.0,1.21649857]
[1772804314518,0.47597954,2055.8,2054.9,0.001]
[1772804314726,0.47597954,2055.8,2054.9,1.21758409]
[1772804315492,0.47597954,2055.8,2054.9,1.21760139]
[1772804315907,0.47597954,2055.8,2054.9,0.001]
[1772804315908,3.01411029,2055.7,2054.9,0.001]
[1772804316104,0.47597954,2055.6,2054.9,0.001]
[1772804316300,1.79797954,2055.6,2054.9,0.001]
[1772804316803,0.47597954,2055.5,2054.9,0.001]
[1772804317201,0.47597954,2056.4,2054.9,0.4609825]
[1772804317507,0.47597954,2056.1,2054.9,0.4609825]
[1772804317806,1.79797954,2056.0,2055.1,0.001]
[1772804318003,0.47597954,2055.7,2055.1,0.001]
[1772804318203,0.47597954,2055.7,2054.9,0.001]
[1772804318588,1.321,2055.7,2054.9,0.001]
[1772804318809,0.47597954,2055.6,2054.9,0.001]
[1772804319408,1.21801245,2055.9,2054.9,0.4609825]
[1772804319611,1.321,2055.8,2054.9,0.4609825]
[1772804319979,2.53710594,2055.8,2055.0,1.21654501]
[1772804320583,1.321,2055.8,2055.0,1.21654501]
[1772804320903,0.002,2055.9,2055.0,1.21654501]
[1772804321082,1.69400276,2055.9,2055.0,1.21654501]
[1772804321283,0.47597954,2055.8,2055.0,1.21654501]
[1772804322124,1.21613075,2055.7,2054.9,0.001]
[1772804322584,2.53613075,2055.7,2054.9,0.001]
[1772804322780,0.47597954,2055.6,2054.9,0.001]
[1772804324010,1.69402747,2055.9,2054.9,0.4609825]
[1772804324321,3.01402747,2055.9,2054.9,0.4609825]
[1772804324611,2.53804793,2055.9,2054.9,0.001]
[1772804324800,0.47597954,2055.8,2054.9,0.001]
[1772804325595,1.319,2055.7,2054.9,0.001]
[1772804326316,1.21618992,2055.6,2054.9,0.001]
[1772804326497,1.69216946,2055.6,2054.9,0.001]
[1772804326899,0.47597954,2055.5,2054.9,0.001]
[1772804327918,0.47597954,2055.2,2054.4,0.001]
[1772804328088,2.25788298,2055.3,2054.2,0.001]
[1772804328089,0.47597954,2055.0,2054.2,0.001]
[1772804328421,1.69258375,2054.9,2054.2,0.001]
[1772804328592,0.47597954,2054.8,2054.2,0.001]
[1772804329212,0.47597954,2054.8,2053.7,1.21727246]
[1772804329513,0.47597954,2054.8,2053.5,4.86966202]
[1772804330606,0.47597954,2054.6,2053.4,1.21843364]
[1772804331210,0.47597954,2054.6,2054.4,0.001]
[1772804331406,0.47597954,2054.4,2053.4,1.21843364]
[1772804331915,0.47597954,2054.4,2054.1,0.001]
[1772804332115,0.47597954,2054.4,2053.4,1.21843364]
[1772804332519,1.21701879,2054.2,2053.9,0.001]
[1772804332812,0.47597954,2054.4,2053.9,0.001]
[1772804332989,2.53392623,2054.4,2053.9,0.001]
[1772804333185,1.21692623,2054.4,2053.9,0.001]
[1772804333388,2.53386538,2054.5,2053.9,0.001]
[1772804333601,1.21686538,2054.5,2053.9,0.001]
[1772804333818,2.53386538,2054.5,2053.9,0.001]
[1772804334429,0.60693983,2054.4,2053.9,0.001]
[1772804334793,1.21695954,2054.3,2053.9,0.001]
[1772804334989,1.82387924,2054.4,2053.9,0.001]
[1772804335196,1.317,2054.4,2053.9,0.001]
[1772804336403,0.60693983,2054.4,2053.9,0.001]
[1772804336723,1.317,2054.3,2053.9,0.001]
[1772804337094,2.53395954,2054.3,2053.9,0.001]
[1772804339218,1.21678185,2054.6,2053.9,0.001]
[1772804339426,1.317,2054.3,2053.9,0.001]
[1772804340318,1.21678185,2054.6,2053.9,0.001]
[1772804340625,5.47406725,2054.7,2053.9,0.001]
[1772804340626,2.53374326,2054.7,2053.9,0.63129872]
[1772804340821,1.21674326,2054.7,2053.9,0.63129872]
[1772804341003,1.317,2054.6,2053.9,0.63129872]
[1772804341318,1.317,2054.6,2054.0,1.21713729]
[1772804341701,0.68044402,2054.5,2053.9,0.001]
[1772804341924,1.316,2054.4,2053.6,1.90437353]
[1772804342293,1.316,2054.4,2053.5,1.21739181]
[1772804342522,0.68044402,2054.3,2053.2,1.21857432]
[1772804342701,0.82992901,2054.2,2053.2,0.001]
[1772804343104,0.68044402,2054.0,2053.2,0.001]
[1772804344138,0.68044402,2053.8,2053.2,0.001]
[1772804344632,1.99644402,2053.7,2053.5,0.001]
[1772804345037,1.99644402,2053.7,2053.3,0.001]
[1772804345205,1.21737436,2053.6,2053.3,0.001]
[1772804345805,1.21737436,2053.6,2053.1,0.001]
[1772804346065,1.316,2053.5,2052.9,0.91917971]
[1772804346601,0.68044402,2053.5,2052.9,2.13696639]
[1772804346800,1.99644402,2053.8,2052.9,2.13696639]
[1772804347101,1.316,2053.8,2052.9,2.8240183]
[1772804347319,2.53326267,2053.8,2052.9,2.8240183]
[1772804347525,2.53325903,2053.8,2052.9,2.8240183]
[1772804348129,1.21722104,2053.9,2052.9,2.8240183]
[1772804348329,0.68044402,2054.1,2053.0,0.68705191]
[1772804348626,1.02254431,2054.1,2053.0,0.68705191]
[1772804349230,2.23962797,2054.1,2053.2,0.68705191]
[1772804349526,1.02254431,2054.1,2053.2,0.68705191]